bitfinex-derivatives/quotes_SOLF0:USTF0_20241224
["timestamp","ask_amount","ask_price","bid_price","bid_amount"]
[1735048560026,22.68453332,195.51,195.46,2.5612]
[1735048560221,20.12393332,195.51,195.33,20.12393332]
[1735048560423,2.5608,195.5,195.33,20.12393332]
[1735048560627,20.12393332,195.51,195.33,20.12393332]
[1735048560924,20.12393332,195.47,195.32,54.17635869]
[1735048561128,20.12393332,195.43,195.36,54.17635869]
[1735048561625,2.5619,195.41,195.36,54.17635869]
[1735048561925,2.7124,195.56,195.29,20.12393332]
[1735048561926,20.12393332,195.47,195.29,20.12393332]
[1735048562122,20.12393332,195.47,195.38,2.5622]
[1735048562522,20.12393332,195.43,195.29,20.12393332]
[1735048562723,20.12393332,195.43,195.27,56.86995869]
[1735048562928,124.0,195.69,195.37,20.12393332]
[1735048563128,20.12393332,195.56,195.38,5.4483]
[1735048563633,20.12393332,195.56,195.41,20.12393332]
[1735048563928,2.5601,195.55,195.49,2.5608]
[1735048564523,32.69795842,195.53,195.42,2.8146]
[1735048564924,32.69795842,195.49,195.41,54.17635869]
[1735048565628,2.5615,195.44,195.42,68.74184933]
[1735048566024,32.69795842,195.49,195.42,68.74184933]
[1735048566636,2.5611,195.47,195.38,5.4483]
[1735048566830,32.69795842,195.49,195.38,5.4483]
[1735048567024,2.8443,195.48,195.39,14.56549064]
[1735048568033,2.5616,195.44,195.39,14.56549064]
[1735048568233,32.69795842,195.45,195.38,5.4483]
[1735048568432,2.8443,195.48,195.38,5.4483]
[1735048568926,2.8443,195.48,195.38,2.6316]
[1735048569227,2.5617,195.43,195.38,5.1938]
[1735048569532,2.5617,195.43,195.38,2.5622]
[1735048569729,2.7815,195.47,195.37,2.5624]
[1735048569926,32.69795842,195.44,195.37,2.5624]
[1735048570631,32.69795842,195.44,195.35,14.56549064]
[1735048570833,2.562,195.4,195.35,17.12809064]
[1735048571028,2.562,195.4,195.35,2.5626]
[1735048571328,2.5616,195.43,195.38,2.5623]
[1735048571525,2.8443,195.48,195.33,5.5226]
[1735048572032,32.69795842,195.49,195.34,32.69795842]
[1735048572230,3.6775,195.56,195.34,32.69795842]
[1735048572231,32.69795842,195.53,195.34,32.69795842]
[1735048572832,32.69795842,195.53,195.37,54.17635869]
[1735048573526,2.5612,195.47,195.42,2.5616]
[1735048573734,32.69795842,195.49,195.38,68.74184933]
[1735048573735,32.69795842,195.43,195.38,68.74184933]
[1735048574430,32.69795842,195.43,195.32,54.17635869]
[1735048575429,2.5618,195.42,195.37,2.5624]
[1735048575828,32.69795842,195.49,195.3,86.87431711]
[1735048576231,32.69795842,195.49,195.33,59.69895869]
[1735048576936,2.5616,195.44,195.34,54.17635869]
[1735048577527,2.5616,195.43,195.38,2.5621]
[1735048579237,2.5618,195.42,195.37,2.5624]
[1735048579437,32.69795842,195.49,195.33,59.69895869]
[1735048579642,32.69795842,195.45,195.33,59.69895869]
[1735048580239,2.5618,195.42,195.37,2.5624]
[1735048580440,32.69795842,195.5,195.33,5.5226]
[1735048581042,2.5612,195.47,195.33,5.5226]
[1735048581339,2.5612,195.47,195.35,54.17635869]
[1735048582136,2.5609,195.49,195.43,2.5616]
[1735048582336,5.117,195.67,195.36,54.17635869]
[1735048582534,32.69795842,195.62,195.45,32.69795842]
[1735048582735,2.5597,195.58,195.52,2.5604]
[1735048582935,2.754,195.66,195.47,2.7098]
[1735048582936,32.69795842,195.63,195.47,2.7098]
[1735048583343,32.69795842,195.59,195.47,2.7098]
[1735048583531,2.754,195.66,195.47,2.7098]
[1735048583736,2.5595,195.6,195.53,2.5603]
[1735048584036,32.69795842,195.63,195.47,2.7098]
[1735048584240,2.5598,195.57,195.5,2.5606]
[1735048584442,2.5598,195.57,195.47,2.7098]
[1735048585146,2.5599,195.56,195.47,2.7098]
[1735048586440,2.5599,195.56,195.5,2.5607]
[1735048587444,32.69795842,195.59,195.47,2.7098]
[1735048587838,32.69795842,195.55,195.47,2.7098]
[1735048588040,32.69795842,195.52,195.43,54.17635869]
[1735048588443,32.69795842,195.52,195.41,5.588]
[1735048588647,32.69795842,195.52,195.43,2.5615]
[1735048588648,2.5608,195.49,195.43,2.5615]
[1735048588948,32.69795842,195.52,195.41,5.588]
[1735048589151,2.561,195.48,195.42,2.5617]
[1735048589338,2.561,195.48,195.41,5.588]
[1735048589542,32.69795842,195.52,195.41,5.588]
[1735048589743,2.5608,195.49,195.43,2.5616]
[1735048590345,2.5608,195.5,195.43,2.5616]
[1735048590541,32.69795842,195.52,195.41,5.3831]
[1735048590849,2.561,195.48,195.41,2.8213]
[1735048591647,32.69795842,195.52,195.41,2.8213]
[1735048591848,2.5608,195.49,195.41,2.8213]
[1735048593148,20.13415303,195.52,195.41,2.8213]
[1735048593349,2.5607,195.5,195.45,2.5613]
[1735048593554,20.13415303,195.52,195.41,2.8213]
[1735048593945,20.13415303,195.52,195.39,2.6915]
[1735048594143,20.13415303,195.48,195.39,2.6915]
[1735048594347,2.5615,195.44,195.4,2.562]
[1735048594553,2.5615,195.44,195.39,2.6915]
[1735048594849,2.5615,195.44,195.37,2.8567]
[1735048595243,20.13415303,195.48,195.37,2.8567]
[1735048596356,2.5614,195.45,195.4,2.5619]
[1735048597648,20.13415303,195.48,195.37,2.8567]
[1735048597848,20.13415303,195.45,195.37,2.8567]
[1735048598250,20.13415303,195.45,195.33,59.95915869]
[1735048598453,2.562,195.4,195.33,59.95915869]
[1735048598848,20.13415303,195.45,195.33,5.7828]
[1735048599053,20.13415303,195.42,195.33,2.8893]
[1735048599549,20.13415303,195.42,195.32,2.7235]
[1735048600046,20.13415303,195.42,195.32,5.2864]
[1735048601057,20.13415303,195.42,195.33,2.5629]
[1735048601250,2.5624,195.38,195.33,2.5629]
[1735048601857,2.5624,195.37,195.33,2.5629]
[1735048604360,20.13415303,195.42,195.32,2.7235]
[1735048604553,2.5622,195.39,195.32,2.7235]
[1735048604754,20.13415303,195.39,195.32,2.7235]
[1735048605052,20.13415303,195.39,195.28,2.8309]
[1735048605256,2.5624,195.38,195.33,2.5629]
[1735048605654,20.13415303,195.39,195.33,2.5629]
[1735048605854,2.5624,195.37,195.33,2.5629]
[1735048606854,20.13415303,195.44,195.28,2.8309]
[1735048607258,2.5619,195.42,195.28,2.8309]
[1735048607760,20.13415303,195.44,195.28,2.8309]
[1735048608561,2.5618,195.42,195.32,2.5629]
[1735048608755,5.5903,195.47,195.28,2.8309]
[1735048608961,20.13415303,195.41,195.28,2.8309]
[1735048609365,2.5623,195.39,195.33,2.5629]
[1735048609864,20.13415303,195.41,195.28,2.8309]
[1735048609865,0.9286,195.53,195.28,2.8309]
[1735048610067,2.5618,195.42,195.36,2.5624]
[1735048610366,20.13415303,195.45,195.28,2.8309]
[1735048610554,2.5621,195.4,195.35,2.5626]
[1735048611067,20.13415303,195.45,195.28,2.8309]
[1735048611466,2.5618,195.42,195.36,2.5624]
[1735048611859,20.13415303,195.45,195.28,2.8309]
[1735048612065,20.13415303,195.42,195.28,2.8309]
[1735048613061,2.5623,195.38,195.32,2.563]
[1735048613264,20.13415303,195.39,195.27,2.8476]
[1735048613567,20.13415303,195.39,195.24,2.6632]
[1735048613568,20.13415303,195.32,195.24,2.6632]
[1735048613766,2.5635,195.29,195.24,5.2272]
[1735048614066,20.13415303,195.32,195.24,2.6632]
[1735048614266,2.5633,195.3,195.26,2.5638]
[1735048614466,20.13415303,195.36,195.24,2.6632]
[1735048614869,2.563,195.33,195.27,2.5636]
[1735048615065,20.13415303,195.36,195.27,2.5636]
[1735048615366,20.13415303,195.33,195.24,2.6632]
[1735048615570,2.5634,195.3,195.24,5.2273]
[1735048615764,2.5634,195.3,195.24,2.6632]
[1735048617564,2.5637,195.28,195.24,2.6632]
[1735048618068,2.5637,195.28,195.22,2.5642]
[1735048618365,20.13415303,195.3,195.19,2.6596]
[1735048618366,2.5638,195.27,195.19,2.6596]
[1735048618672,2.5638,195.27,195.21,2.5644]
[1735048619972,2.5635,195.29,195.23,2.5641]
[1735048620573,2.5635,195.29,195.24,2.564]
[1735048620772,2.5632,195.31,195.19,2.6596]
[1735048620971,2.5632,195.31,195.19,22.79375303]
[1735048622067,2.5635,195.29,195.19,2.6596]
[1735048623468,2.5635,195.29,195.23,2.5641]
[1735048623973,2.5633,195.31,195.25,2.5639]
[1735048624875,2.563,195.33,195.27,2.5637]
[1735048625176,2.563,195.33,195.19,22.79375303]
[1735048625574,20.13415303,195.37,195.19,22.79375303]
[1735048626181,22.69665303,195.37,195.22,20.13415303]
[1735048626373,2.5625,195.37,195.22,20.13415303]
[1735048627474,2.5625,195.36,195.31,2.5631]
[1735048628180,2.563,195.33,195.27,2.5637]
[1735048628381,2.563,195.33,195.22,20.13415303]
[1735048628683,2.8787,195.39,195.22,20.13415303]
[1735048628978,2.5623,195.38,195.22,20.13415303]
[1735048629385,5.4408,195.39,195.25,20.13415303]
[1735048629575,2.5621,195.39,195.26,5.5236]
[1735048630580,2.5621,195.39,195.33,2.5628]
[1735048630772,2.5623,195.38,195.33,2.5628]
[1735048631679,20.13415303,195.41,195.26,5.5236]
[1735048632588,2.562,195.4,195.26,5.5236]
[1735048632882,20.13415303,195.41,195.26,5.5236]
[1735048633081,2.5624,195.37,195.3,2.5632]
[1735048633283,20.13415303,195.38,195.26,5.5236]
[1735048633687,20.13415303,195.35,195.26,2.8932]
[1735048633887,2.5631,195.32,195.27,2.5636]
[1735048634086,2.5631,195.32,195.26,2.8932]
[1735048634587,2.5631,195.32,195.28,2.5636]
[1735048634788,2.5632,195.31,195.26,2.8932]
[1735048635283,2.5632,195.31,195.26,5.4569]
[1735048635486,20.13415303,195.36,195.26,2.8932]
[1735048636390,2.5633,195.31,195.26,5.4569]
[1735048636587,20.13415303,195.36,195.26,2.8932]
[1735048636887,2.614,195.37,195.26,2.8932]
[1735048637592,2.5626,195.36,195.31,2.5631]
[1735048638691,2.614,195.37,195.31,2.5631]
[1735048639189,20.13415303,195.36,195.26,2.8932]
[1735048639889,20.13415303,195.36,195.27,2.5637]
[1735048640089,2.5629,195.34,195.27,2.5637]
[1735048640289,20.13415303,195.36,195.27,2.5637]
[1735048640795,2.614,195.37,195.27,2.5637]
[1735048640796,20.13415303,195.33,195.27,2.5637]
[1735048641188,20.13415303,195.33,195.28,2.5636]
[1735048641391,22.77305303,195.36,195.28,2.5636]
[1735048642290,20.13415303,195.36,195.3,2.5633]
[1735048642490,2.5629,195.34,195.3,2.5633]
[1735048643097,20.13415303,195.36,195.3,2.5633]
[1735048643296,2.5629,195.33,195.29,2.5634]
[1735048644493,20.13415303,195.36,195.26,2.8932]
[1735048644804,20.13415303,195.33,195.24,54.17635869]
[1735048644992,2.5637,195.28,195.24,54.17635869]
[1735048645298,20.13415303,195.33,195.21,54.17635869]
[1735048645494,20.13415303,195.29,195.21,54.17635869]
[1735048645798,20.13415303,195.26,195.21,54.17635869]
[1735048646195,2.5644,195.22,195.21,54.17635869]
[1735048646393,2.7858,195.28,195.21,54.17635869]
[1735048646699,2.7858,195.28,195.23,2.5642]
[1735048646700,2.5637,195.28,195.23,2.5642]
[1735048647895,2.5634,195.3,195.25,2.564]
[1735048648095,20.13415303,195.33,195.16,54.17635869]
[1735048648492,20.13415303,195.33,195.16,68.74184933]
[1735048648793,20.13415303,195.3,195.22,2.5643]
[1735048649192,20.13415303,195.27,195.16,68.74184933]
[1735048649599,2.5634,195.3,195.2,2.5645]
[1735048649897,20.13415303,195.29,195.2,2.5645]
[1735048650897,2.5643,195.23,195.18,2.5649]
[1735048651395,20.13415303,195.3,195.15,54.17635869]
[1735048651594,2.5651,195.17,195.15,54.17635869]
[1735048652100,2.5651,195.17,195.13,2.5655]
[1735048652496,2.5648,195.19,195.14,2.5654]
[1735048652995,20.13415303,195.26,195.12,54.17635869]
[1735048653494,20.13415303,195.29,195.11,25.60265303]
[1735048653895,2.5638,195.27,195.14,20.13415303]
[1735048654095,20.13415303,195.32,195.15,2.7681]
[1735048654700,20.13415303,195.29,195.15,2.7681]
[1735048654902,20.13415303,195.29,195.17,54.17635869]
[1735048655400,2.5638,195.25,195.19,2.5644]
[1735048655797,20.13415303,195.29,195.19,2.5644]
[1735048656700,20.13415303,195.29,195.15,2.7681]
[1735048657001,20.13415303,195.29,195.15,56.94445869]
[1735048657201,2.564,195.24,195.2,2.5643]
[1735048658696,2.564,195.24,195.15,54.17635869]
[1735048658697,20.13415303,195.26,195.15,54.17635869]
[1735048658905,2.5642,195.22,195.15,54.17635869]
[1735048659300,2.5642,195.22,195.14,2.6691]
[1735048660100,2.5642,195.22,195.15,2.5649]
[1735048660301,2.5644,195.2,195.14,2.6691]
[1735048660499,2.5644,195.2,195.11,57.00185869]
[1735048660694,20.13415303,195.18,195.11,57.00185869]
[1735048661805,20.13415303,195.18,195.11,2.8255]
[1735048662403,2.5651,195.15,195.11,2.8255]
[1735048662900,2.5651,195.15,195.09,2.5658]
[1735048663101,20.13415303,195.18,195.06,5.4864]
[1735048663301,2.5658,195.09,195.06,2.6229]
[1735048664208,20.13415303,195.14,195.06,2.6229]
[1735048664403,2.5655,195.12,195.06,2.6229]
[1735048664707,22.90895303,195.17,195.06,2.6229]
[1735048665102,2.5653,195.14,195.07,2.566]
[1735048665404,22.90895303,195.17,195.06,2.6229]
[1735048665608,20.13415303,195.14,195.06,5.189]
[1735048665805,20.13415303,195.14,195.03,54.17635869]
[1735048666202,20.13415303,195.14,195.03,56.74295869]
[1735048666502,20.13415303,195.14,195.01,56.98515869]
[1735048667509,2.5657,195.1,195.01,56.98515869]
[1735048668307,20.13415303,195.14,195.01,56.98515869]
[1735048668707,20.13415303,195.14,195.01,2.8088]
[1735048668905,20.13415303,195.08,195.01,2.8088]
[1735048669305,2.566,195.08,195.02,2.5667]
[1735048669614,20.13415303,195.11,195.01,2.8088]
[1735048670400,3.8182,195.16,195.01,2.8088]
[1735048670607,22.90895303,195.17,195.01,22.94295303]
[1735048671402,2.5648,195.17,195.04,20.13415303]
[1735048671801,20.13415303,195.2,195.11,2.5654]
[1735048672000,20.13415303,195.2,195.02,54.17635869]
[1735048672202,12.62517194,195.16,195.03,12.62517194]
[1735048672397,12.62517194,195.16,195.07,2.566]
[1735048672398,2.5653,195.14,195.07,2.566]
[1735048672598,12.62517194,195.16,195.07,2.566]
[1735048672803,2.8219,195.22,195.06,12.62517194]
[1735048673010,12.62517194,195.22,195.09,12.62517194]
[1735048673201,12.62517194,195.22,195.1,8.2931]
[1735048673710,15.18937194,195.22,195.13,2.5652]
[1735048673903,15.18937194,195.22,195.1,8.2931]
[1735048674101,2.5642,195.22,195.1,8.2931]
[1735048674810,2.5642,195.22,195.15,2.5649]
[1735048675015,20.18701136,195.24,195.1,62.46945869]
[1735048675313,20.18701136,195.24,195.13,2.5652]
[1735048675712,20.18701136,195.21,195.13,2.5652]
[1735048676208,2.5646,195.19,195.12,2.5653]
[1735048676407,20.18701136,195.21,195.1,8.2931]
[1735048676608,20.18701136,195.24,195.1,8.2931]
[1735048676813,20.18701136,195.24,195.18,2.5646]
[1735048677517,20.18701136,195.21,195.1,8.2931]
[1735048677706,20.18701136,195.21,195.13,54.17635869]
[1735048678508,20.18701136,195.21,195.1,8.2931]
[1735048679713,20.18701136,195.25,195.1,8.2931]
[1735048680016,20.18701136,195.25,195.11,54.17635869]
[1735048680406,20.18701136,195.28,195.11,74.36337005]
[1735048680817,20.18701136,195.28,195.12,54.17635869]
[1735048681512,20.18701136,195.28,195.13,54.17635869]
[1735048681709,2.5636,195.26,195.2,2.5642]
[1735048681913,20.18701136,195.31,195.14,20.18701136]
[1735048682313,2.5632,195.3,195.24,2.5637]
[1735048683112,2.5632,195.3,195.2,8.4482]
[1735048683113,2.5628,195.32,195.26,2.5635]
[1735048683722,20.18701136,195.31,195.23,2.5639]
[1735048684210,20.18701136,195.31,195.2,62.62455869]
[1735048684416,20.18701136,195.31,195.2,8.4482]
[1735048684614,20.18701136,195.34,195.2,8.4482]
[1735048685016,22.74911136,195.38,195.33,2.5627]
[1735048685716,22.74951136,195.35,195.29,2.5631]
[1735048688520,2.5628,195.33,195.27,2.5634]
[1735048689221,22.74951136,195.35,195.29,2.5631]
[1735048689422,2.5625,195.35,195.29,2.5631]
[1735048690627,20.18701136,195.38,195.2,82.81157005]
[1735048690819,20.18701136,195.38,195.31,2.5629]
[1735048691023,20.18701136,195.38,195.21,54.17635869]
[1735048691726,2.5624,195.36,195.3,2.563]
[1735048692030,20.18701136,195.41,195.23,20.18701136]
[1735048692326,2.5621,195.38,195.27,2.5635]
[1735048692517,2.8439,195.44,195.21,54.17635869]
[1735048692518,20.18701136,195.34,195.21,54.17635869]
[1735048692719,20.18701136,195.34,195.22,57.07345869]
[1735048693126,2.563,195.31,195.25,2.5636]
[1735048693330,20.18701136,195.34,195.22,57.07345869]
[1735048693629,20.18701136,195.31,195.22,2.8971]
[1735048694131,2.5635,195.27,195.22,2.8971]
[1735048694830,2.5635,195.27,195.22,5.4612]
[1735048696529,2.5635,195.27,195.22,2.5641]
[1735048698127,2.5639,195.24,195.2,2.5643]
[1735048698726,12.60826979,195.26,195.17,2.7268]
[1735048698931,2.5641,195.22,195.18,2.5645]
[1735048699425,12.60826979,195.26,195.17,2.7268]
[1735048699631,2.5642,195.21,195.14,2.6116]
[1735048700433,12.60826979,195.23,195.14,2.6116]
[1735048700734,12.60826979,195.26,195.14,2.6116]
[1735048700924,15.30056979,195.29,195.16,12.60826979]
[1735048701231,12.60826979,195.32,195.19,12.60826979]
[1735048701532,12.60826979,195.32,195.2,2.6742]
[1735048702034,12.60826979,195.32,195.21,2.8592]
[1735048702627,2.5633,195.28,195.23,2.564]
[1735048702823,12.60826979,195.26,195.16,54.17635869]
[1735048703023,12.60826979,195.26,195.15,54.17635869]
[1735048703229,2.5639,195.24,195.2,2.5644]
[1735048703527,12.60826979,195.26,195.16,12.60826979]
[1735048704130,22.73790684,195.3,195.21,2.5642]
[1735048704332,20.17480684,195.3,195.21,2.5642]
[1735048704527,20.17480684,195.27,195.13,54.17635869]
[1735048704734,20.17480684,195.27,195.17,2.5647]
[1735048705132,20.17480684,195.27,195.14,2.8592]
[1735048705326,2.5641,195.23,195.14,2.8592]
[1735048707539,2.5641,195.23,195.18,2.5646]
[1735048709135,208.53753628,195.5,195.17,20.17480684]
[1735048709339,5.1222,195.46,195.2,20.17480684]
[1735048709540,20.17480684,195.4,195.2,20.17480684]
[1735048709934,20.17480684,195.37,195.2,20.17480684]
[1735048710140,20.17480684,195.37,195.23,54.17635869]
[1735048710341,20.17480684,195.37,195.24,2.6555]
[1735048710546,20.17480684,195.37,195.24,5.4647]
[1735048710837,2.5625,195.34,195.24,5.4647]
[1735048711142,2.7368,195.39,195.24,5.4647]
[1735048711336,20.17480684,195.43,195.26,20.17480684]
[1735048711736,22.97300684,195.46,195.29,20.17480684]
[1735048711936,20.17480684,195.46,195.29,20.17480684]
[1735048712545,20.17480684,195.46,195.27,54.17635869]
[1735048712741,20.17480684,195.46,195.32,54.17635869]
[1735048712941,20.17480684,195.49,195.33,5.5924]
[1735048713151,25.53330684,195.52,195.35,20.17480684]
[1735048713440,49.6938,195.48,195.42,20.17480684]
[1735048713643,32.3001,195.48,195.46,22.73580684]
[1735048713839,21.6205,195.48,195.46,22.73580684]
[1735048714449,21.6205,195.48,195.46,2.561]
[1735048714951,2.5597,195.56,195.48,2.5607]
[1735048715145,20.17480684,195.61,195.42,74.35116553]
[1735048715549,20.17480684,195.58,195.42,74.35116553]
[1735048715744,20.17480684,195.55,195.42,54.17635869]
[1735048716653,2.5604,195.51,195.42,2.5614]
[1735048716948,20.17480684,195.55,195.42,2.5614]
[1735048717347,2.5604,195.51,195.43,2.5613]
[1735048717547,20.17480684,195.55,195.39,20.17480684]
[1735048717948,2.56,195.54,195.46,2.561]
[1735048718145,8.2744,195.57,195.42,20.17480684]
[1735048718649,2.5603,195.51,195.43,2.5612]
[1735048718848,8.2744,195.57,195.42,20.17480684]
[1735048719246,20.17480684,195.53,195.37,54.17635869]
[1735048719951,20.17480684,195.53,195.34,74.35116553]
[1735048720355,20.17480684,195.5,195.34,74.35116553]
[1735048721046,20.17480684,195.5,195.34,20.17480684]
[1735048721645,8.2744,195.57,195.34,20.17480684]
[1735048721850,20.17480684,195.56,195.38,20.17480684]
[1735048722251,20.17480684,195.56,195.46,2.561]
[1735048722644,2.56,195.53,195.38,20.17480684]
[1735048722853,2.56,195.53,195.39,0.94114106]
[1735048723053,2.56,195.53,195.38,20.17480684]
[1735048723250,2.56,195.53,195.39,0.94114127]
[1735048723456,2.56,195.53,195.38,20.17480684]
[1735048723648,2.56,195.53,195.43,2.5613]
[1735048723850,20.17480684,195.56,195.38,20.17480684]
[1735048724052,20.17480684,195.52,195.37,54.17635869]
[1735048724451,2.5608,195.47,195.4,2.5617]
[1735048725050,2.5608,195.47,195.37,54.17635869]
[1735048725051,2.5607,195.49,195.37,54.17635869]
[1735048725247,2.5607,195.49,195.35,20.17480684]
[1735048726854,20.17480684,195.49,195.32,54.17635869]
[1735048727251,2.5612,195.45,195.31,54.17635869]
[1735048727955,5.5339,195.44,195.31,54.17635869]
[1735048728453,5.5339,195.44,195.38,2.562]
[1735048729859,5.5339,195.44,195.3,20.17480684]
[1735048730160,2.5614,195.43,195.37,2.5621]
[1735048731361,8.0951,195.44,195.38,2.562]
[1735048732467,8.0951,195.44,195.27,54.17635869]
[1735048732468,20.17480684,195.4,195.27,54.17635869]
[1735048732854,2.5618,195.4,195.34,2.5624]
[1735048734759,20.17480684,195.43,195.26,20.17480684]
[1735048735059,2.5621,195.38,195.26,20.17480684]
[1735048736360,20.17480684,195.43,195.26,20.17480684]
[1735048736559,2.5616,195.42,195.35,2.5623]
[1735048736761,20.17480684,195.43,195.35,2.5623]
[1735048738367,2.5617,195.41,195.35,2.5623]
[1735048738765,2.5617,195.41,195.36,2.5622]
[1735048738968,2.5611,195.46,195.32,20.17480684]
[1735048739562,2.5611,195.46,195.4,2.5616]
[1735048739765,2.5609,195.47,195.32,20.17480684]
[1735048740165,2.8789,195.48,195.36,20.17480684]
[1735048741470,2.8789,195.48,195.43,2.5613]
[1735048741667,2.8789,195.48,195.36,20.17480684]
[1735048741868,5.4209,195.49,195.36,20.17480684]
[1735048742470,2.7457,195.59,195.4,20.17480684]
[1735048742665,5.5387,195.58,195.4,20.17480684]
[1735048743167,2.5597,195.56,195.5,2.5604]
[1735048743868,5.5387,195.58,195.4,20.17480684]
[1735048744071,5.5387,195.58,195.43,20.17480684]
[1735048745067,5.5387,195.58,195.47,20.17480684]
[1735048745370,2.559,195.62,195.56,2.5595]
[1735048745768,28.33740684,195.64,195.47,20.17480684]
[1735048746071,28.33740684,195.64,195.55,2.5598]
[1735048746373,28.33740684,195.64,195.47,20.17480684]
[1735048746573,28.33740684,195.64,195.54,2.5599]
[1735048746772,2.5592,195.6,195.54,2.5599]
[1735048746972,28.33740684,195.64,195.54,2.5599]
[1735048748474,28.33740684,195.64,195.47,20.17480684]
[1735048749376,2.5593,195.59,195.47,20.17480684]
[1735048749673,8.1626,195.64,195.43,54.17635869]
[1735048749876,20.17480684,195.56,195.44,54.17635869]
[1735048750181,20.17480684,195.63,195.45,20.17480684]
[1735048750475,2.5595,195.58,195.5,2.5604]
[1735048750669,2.5595,195.58,195.45,20.17480684]
[1735048751070,20.17480684,195.63,195.45,20.17480684]
[1735048751273,2.5591,195.61,195.45,20.17480684]
[1735048751975,20.17480684,195.57,195.45,54.17635869]
[1735048752475,2.5603,195.51,195.44,54.17635869]
[1735048752675,20.17480684,195.54,195.44,54.17635869]
[1735048752872,20.17480684,195.57,195.44,54.17635869]
[1735048753268,20.17480684,195.57,195.42,54.17635869]
[1735048753674,20.17480684,195.53,195.42,54.17635869]
[1735048753878,8.3218,195.52,195.42,54.17635869]
[1735048754279,8.3218,195.52,195.41,54.17635869]
[1735048754875,10.8821,195.52,195.46,2.5609]
[1735048755075,8.3218,195.52,195.39,20.17480684]
[1735048755279,8.3218,195.59,195.43,20.17480684]
[1735048755479,2.5595,195.57,195.43,20.17480684]
[1735048755975,8.3218,195.59,195.43,20.17480684]
[1735048755976,2.5598,195.56,195.47,2.5607]
[1735048756181,2.5598,195.56,195.43,20.17480684]
[1735048756682,2.5598,195.56,195.43,74.35116553]
[1735048756980,8.3218,195.59,195.43,74.35116553]
[1735048757980,20.17480684,195.58,195.43,20.17480684]
[1735048758674,2.5597,195.56,195.43,20.17480684]
[1735048759183,5.5139,195.59,195.43,20.17480684]
[1735048759381,5.5139,195.59,195.43,74.35116553]
[1735048759685,2.5595,195.58,195.53,2.56]
[1735048759879,5.5139,195.59,195.47,20.17480684]
[1735048760078,20.17480684,195.62,195.47,20.17480684]
[1735048760280,2.5589,195.62,195.57,2.5595]
[1735048760677,144.17480684,195.8,195.47,20.17480684]
[1735048760876,2.5587,195.64,195.47,20.17480684]
[1735048761283,2.5587,195.64,195.57,2.5594]
[1735048761678,2.5587,195.63,195.57,2.5594]
[1735048761980,20.17480684,195.64,195.47,20.17480684]
[1735048762283,2.5591,195.61,195.47,20.17480684]
[1735048762582,2.5591,195.61,195.55,2.5597]
[1735048763985,20.17480684,195.64,195.55,2.5597]
[1735048763986,2.5591,195.6,195.55,2.5597]
[1735048764675,20.17480684,195.64,195.55,2.5597]
[1735048764676,2.559,195.61,195.55,2.5597]
[1735048764879,20.17480684,195.64,195.47,20.17480684]
[1735048765280,2.5593,195.59,195.47,20.17480684]
[1735048766177,2.5593,195.59,195.53,2.5599]
[1735048766982,2.5593,195.59,195.47,12.56901831]
[1735048766983,12.56901831,195.6,195.47,12.56901831]
[1735048767184,15.12811831,195.6,195.54,2.5598]
[1735048767684,15.12811831,195.6,195.55,2.5598]
[1735048768279,12.56901831,195.6,195.52,2.5601]
[1735048768478,12.56901831,195.6,195.44,66.745377]
[1735048768682,2.5595,195.58,195.47,12.56901831]
[1735048768983,12.56901831,195.6,195.52,2.5601]
[1735048769786,2.5597,195.56,195.52,2.5601]
[1735048769988,12.56901831,195.57,195.5,2.5603]
[1735048770888,2.5598,195.55,195.5,2.5603]
[1735048771477,12.56901831,195.57,195.44,12.56901831]
[1735048771678,2.5596,195.57,195.52,2.5602]
[1735048771980,2.6657,195.65,195.47,12.56901831]
[1735048772186,12.56901831,195.61,195.47,12.56901831]
[1735048773287,2.5595,195.57,195.52,2.5601]
[1735048773489,12.56901831,195.61,195.52,2.5601]
[1735048773684,12.56901831,195.57,195.46,54.17635869]
[1735048773891,2.56,195.53,195.47,56.73705869]
[1735048774793,2.56,195.53,195.47,2.5607]
[1735048775088,2.5602,195.52,195.47,2.5607]
[1735048775296,2.5602,195.52,195.46,54.17635869]